fUSD/lending_fUSD_20251206
["ID","MTS","AMOUNT","RATE_DAILY","PERIOD"]
[396486851,1764994231870,-418.26636555,0.0001627,2]
[396486852,1764994231884,-1388.91954942,0.0001627,2]
[396486853,1764994231895,-2097.5302149,0.0001627,2]
[396486854,1764994231905,-832.33893487,0.0001627,2]
[396486855,1764994231916,-1605.89447669,0.0001627,2]
[396486857,1764994231937,-871.0,0.0001627,2]
[396486858,1764994235398,520.45,7.723e-05,2]
[396486859,1764994235763,520.45,8.129e-05,2]
[396486860,1764994235989,520.45,8.535e-05,2]
[396486861,1764994236164,520.45,8.942e-05,2]
[396486862,1764994236367,520.45,9.348e-05,2]
[396486863,1764994236565,520.45,9.755e-05,2]
[396486864,1764994236758,520.45,0.00010161,2]
[396486865,1764994237159,520.45,0.00010568,2]
[396486866,1764994237280,520.45,0.00010974,2]
[396486867,1764994237357,520.45,0.00011381,2]
[396486868,1764994237551,520.45,0.00011787,2]
[396486869,1764994237737,-91479.75570155,0.0001627,2]
[396486870,1764994237772,363.591567,0.00012193,2]
[396486871,1764994237796,156.858433,0.00012193,2]
[396486872,1764994237980,520.45,0.000126,2]
[396486873,1764994238185,520.45,0.00013006,2]
[396486874,1764994238402,520.45,0.00013413,2]
[396486875,1764994238611,520.45,0.00013819,2]
[396486876,1764994238820,520.45,0.00014226,2]
[396486877,1764994239010,520.45,0.00014632,2]
[396486878,1764994239209,520.45,0.00015038,2]
[396486879,1764994239828,520.45,0.00015445,2]
[396486890,1764994242708,-1000.0,0.0001617,2]
[396486891,1764994242717,-28850.87155511,0.0001627,2]
[396486894,1764994245753,-9375.55163035,0.0001627,2]
[396486897,1764994277892,171.47,0.00012351,2]
[396486898,1764994292800,1768.349,0.00015945,2]
[396486899,1764994292830,161.814,0.00015945,2]
[396486900,1764994337658,1852.42,0.00015413,2]
[396486901,1764994406792,200.0,0.00015289,2]
[396486902,1764994407251,200.0,0.0001529,2]
[396486903,1764994621966,1500.0,0.00015437,2]
[396486905,1764994747323,1600.0,0.000155,2]
[396486906,1764995003710,200.0,0.00015376,2]
[396486907,1764995055593,250.0,0.00015421,2]
[396486909,1764995156722,-227.53282621,0.00016,2]
[396486910,1764995159476,-165.09064693,0.00016,2]
[396486911,1764995164638,-284.21660658,0.00016,2]
[396486912,1764995166144,-307.98806503,0.00016,2]
[396486913,1764995167845,-225.08729255,0.00016,2]
[396486914,1764995170479,-276.85341313,0.00016,2]
[396486915,1764995172811,-431.46689418,0.00016,2]
[396486916,1764995308153,202.1,0.00015391,2]
[396486917,1764995321659,-97.26425539,0.00016,2]
[396486918,1764995321682,-118.46088272,0.00016,4]
[396486919,1764995324437,-197.00144261,0.00016,4]
[396486920,1764995327428,-333.0221598,0.00016,4]
[396486921,1764995330116,-179.1198836,0.00016,4]
[396486922,1764995332879,-201.66722386,0.00016,4]
[396486923,1764995334379,-264.58696209,0.00016,4]
[396486924,1764995338221,-175.2123444,0.00016,4]
[396486925,1764995341399,-250.0,0.00016,4]
[396486926,1764995341519,300.0,0.00015999,2]
[396486927,1764995342779,1000.0,0.00015999,3]
[396486928,1764995342886,-410.6718391,0.00016,4]
[396486930,1764995344346,-156.96332126,0.00016,4]
[396486931,1764995346375,-188.95444645,0.00016,4]
[396486932,1764995348973,-321.53,0.00016,4]
[396486933,1764995349718,542.28,0.00013699,2]
[396486934,1764995350150,-198.1639605,0.00016,4]
[396486935,1764995352226,-225.8981609,0.00016,4]
[396486936,1764995356857,-300.0,0.00016,4]
[396486937,1764995359268,-274.7876556,0.00016,4]
[396486938,1764995362291,-222.30237251,0.00016,4]
[396486939,1764995363948,-183.37914982,0.00016,4]
[396486940,1764995366134,-182.54369777,0.00016,4]
[396486941,1764995367704,-165.34225733,0.00016,4]
[396486942,1764995369875,-182.0,0.00016,4]
[396486943,1764995371867,-325.75017195,0.00016,4]
[396486944,1764995373989,-246.00727806,0.00016,4]
[396486945,1764995377185,-338.05361481,0.00016,4]
[396486946,1764995401607,51.577,0.00015999,2]
[396486947,1764995401629,248.423,0.00015999,2]
[396486948,1764995401660,1200.0,0.00015999,2]
[396486949,1764995401760,300.0,0.00015999,2]
[396486950,1764995411326,8251.587,0.00016,2]
[396486951,1764995411352,1748.413,0.00016,2]
[396486952,1764995425715,480.8999343,0.00025,120]
[396486965,1764995431690,-29758.52572033,0.00016,4]
[396486968,1764995431701,-433.69278607,0.00016,4]
[396486978,1764995431849,-1961.78531538,0.00016,4]
[396487036,1764995437763,-13083.41862111,0.00016,4]
[396487044,1764995440596,-1.7e-07,0.00016,4]
[396487055,1764995443744,-1130.40073013,0.00016,4]
[396487056,1764995443795,-508.95983032,0.00016,4]
[396487060,1764995445924,-7481.85817135,0.00016,4]
[396487061,1764995445935,-195.0,0.00016047,2]
[396487062,1764995445944,-1698.56517033,0.0001607,2]
[396487065,1764995465809,1195.42,0.00015317,2]
[396487066,1764995492759,1414.679,0.00015847,2]
[396487067,1764995492863,161.81481825,0.00015847,2]
[396487068,1764995538888,2751.0,0.00015283,2]
[396487069,1764995601575,673.0,0.00015938,2]
[396487071,1764995660916,150.0,0.00015227,2]
[396487179,1764995931133,489.15039726,0.00015976,2]
[396487180,1764996009346,161.90464736,0.0001597,2]
[396487181,1764996054888,3003.04113713,0.0001597,2]
[396487182,1764996054913,9539.34438331,0.0001597,2]
[396487183,1764996092798,460.66561669,0.00015749,2]
[396487184,1764996092821,671.07738331,0.00015749,2]
[396487186,1764996111455,200.0,0.00015174,2]
[396487190,1764996199923,200.0,0.00015053,2]
[396487192,1764996216379,428.00659755,0.0001597,2]
[396487194,1764996314914,161.90464731,0.0001597,2]
[396487195,1764996350958,4833.88753014,0.0001597,2]
[396487196,1764996372105,404.3004617,0.00015959,2]
[396487197,1764996386084,166.7,0.00015588,2]
[396487198,1764996441581,2934.13337999,0.0001597,2]
[396487199,1764996441606,8354.01358837,0.0001597,2]
[396487200,1764996443458,811.9127,0.0001597,2]
[396487201,1764996447500,834.08371163,0.00015123,2]
[396487202,1764996447522,157.00628837,0.00015123,2]
[396487203,1764996496660,374.5057729,0.0001597,2]
[396487204,1764996542583,1000.0,0.00015999,3]
[396487205,1764996542656,1000.0,0.00015998,3]
[396487207,1764996553235,708.79,0.00015122,2]
[396487208,1764996582516,3355.0,0.00015122,2]
[396487209,1764996609819,161.90464731,0.0001597,2]
[396487211,1764996631904,-300.0,0.00016013,2]
[396487212,1764996631914,-247.77308168,0.00016013,2]
[396487213,1764996631959,-52.22691832,0.00016013,2]
[396487214,1764996631968,-1200.0,0.00016013,2]
[396487215,1764996631977,-300.0,0.00016013,2]
[396487216,1764996631986,-284.0,0.00016013,2]
[396487217,1764996631995,-6600.7,0.00016013,2]
[396487218,1764996632004,-1000.0,0.00016014,2]
[396487219,1764996632014,-311.1,0.00016014,2]
[396487220,1764996632023,-216.12575462,0.00016014,2]
[396487221,1764996632033,-1000.0,0.00016014,2]
[396487222,1764996632042,-309.19668379,0.00016014,2]
[396487223,1764996632051,-195.0,0.00016014,2]
[396487224,1764996632061,-195.0,0.00016014,2]
[396487225,1764996632070,-673.0,0.00016014,2]
[396487226,1764996632079,-1200.0,0.00016058,2]
[396487227,1764996632089,-152.04801309,0.0001606,2]
[396487228,1764996632098,-151.0,0.0001606,2]
[396487229,1764996632107,-500.0,0.0001606,2]
[396487230,1764996632116,-500.0,0.0001606,2]
[396487231,1764996632126,-500.0,0.0001606,2]
[396487232,1764996632135,-500.0,0.0001606,2]
[396487233,1764996632144,-352.84181978,0.0001606,2]
[396487234,1764996632153,-151.0,0.0001606,2]
[396487235,1764996632163,-151.0,0.0001606,2]
[396487236,1764996632172,-151.0,0.0001606,2]
[396487238,1764996632181,-151.0,0.0001606,2]
[396487240,1764996632190,-151.0,0.0001606,2]
[396487241,1764996632203,-151.0,0.0001606,2]
[396487242,1764996632212,-151.0,0.0001606,2]
[396487243,1764996632221,-151.0,0.0001606,2]
[396487244,1764996632231,-151.0,0.0001606,2]
[396487246,1764996632242,-151.0,0.0001606,2]
[396487248,1764996632251,-151.0,0.0001606,2]
[396487249,1764996632260,-200.0,0.0001606,2]
[396487250,1764996632269,-277.35679052,0.0001606,2]
[396487251,1764996632280,-1000.0,0.0001606,2]
[396487252,1764996632289,-528.15929134,0.0001606,2]
[396487253,1764996632298,-300.0,0.0001606,2]
[396487254,1764996632307,-1215.96,0.00016061,2]
[396487255,1764996632316,-550.0,0.00016069,2]
[396487256,1764996632326,-500.0,0.00016069,2]
[396487257,1764996632335,-500.0,0.00016069,2]
[396487258,1764996632344,-500.0,0.00016069,2]
[396487259,1764996632354,-889.51343927,0.00016069,2]
[396487260,1764996638011,-110.48656073,0.00016069,2]
[396487261,1764996638022,-1000.0,0.00016069,2]
[396487262,1764996638033,-152.0,0.0001607,2]
[396487263,1764996638046,-152.0,0.0001607,2]
[396487264,1764996638059,-152.0,0.0001607,2]
[396487265,1764996638069,-152.0,0.0001607,2]
[396487266,1764996638079,-152.0,0.0001607,2]
[396487267,1764996638090,-152.0,0.0001607,2]
[396487268,1764996638099,-152.0,0.0001607,2]
[396487269,1764996638109,-152.0,0.0001607,2]
[396487270,1764996638119,-152.0,0.0001607,2]
[396487271,1764996638128,-152.0,0.0001607,2]
[396487272,1764996638138,-152.0,0.0001607,2]
[396487273,1764996638147,-152.0,0.0001607,2]
[396487274,1764996638157,-154.46210725,0.0001607,2]
[396487275,1764996638166,-152.0,0.0001607,2]
[396487276,1764996638175,-1252.0,0.0001607,2]
[396487277,1764996638185,-1252.0,0.0001607,2]
[396487278,1764996638194,-856.99820711,0.0001607,2]
[396487279,1764996638206,-1252.0,0.0001607,2]
[396487280,1764996638216,-1252.0,0.0001607,2]
[396487281,1764996638225,-833.0,0.0001607,2]
[396487282,1764996638235,-833.0,0.0001607,2]
[396487283,1764996638246,-833.0,0.0001607,2]
[396487284,1764996638256,-833.0,0.0001607,2]
[396487285,1764996638266,-833.0,0.0001607,2]
[396487286,1764996638277,-833.0,0.0001607,2]
[396487287,1764996638287,-833.0,0.0001607,2]
[396487288,1764996638296,-833.0,0.0001607,2]
[396487289,1764996638306,-833.0,0.0001607,2]
[396487290,1764996638316,-833.0,0.0001607,2]
[396487291,1764996638326,-833.0,0.0001607,2]
[396487292,1764996638335,-973.66386793,0.0001607,2]
[396487293,1764996638344,-150.0,0.0001607,2]
[396487294,1764996638354,-150.0,0.0001607,2]
[396487295,1764996638363,-1252.0,0.0001607,2]
[396487296,1764996638372,-152.0,0.0001607,2]
[396487297,1764996638382,-152.0,0.0001607,2]
[396487299,1764996638391,-1252.0,0.0001607,2]
[396487301,1764996638400,-152.0,0.0001607,2]
[396487303,1764996638409,-1252.0,0.0001607,2]
[396487305,1764996638418,-1252.0,0.0001607,2]
[396487307,1764996638427,-152.0,0.0001607,2]
[396487309,1764996638437,-1252.0,0.0001607,2]
[396487312,1764996638446,-152.0,0.0001607,2]
[396487315,1764996638455,-1252.0,0.0001607,2]
[396487317,1764996638465,-152.0,0.0001607,2]
[396487319,1764996638474,-1252.0,0.0001607,2]
[396487321,1764996638484,-152.0,0.0001607,2]
[396487323,1764996638494,-1252.0,0.0001607,2]
[396487325,1764996638503,-152.0,0.0001607,2]
[396487327,1764996638512,-1252.0,0.0001607,2]
[396487329,1764996638522,-152.0,0.0001607,2]
[396487331,1764996638532,-152.0,0.0001607,2]
[396487333,1764996638542,-1252.0,0.0001607,2]
[396487335,1764996638551,-237.80293813,0.0001607,2]
[396487337,1764996638560,-1252.0,0.0001607,2]
[396487339,1764996638570,-1252.0,0.0001607,2]
[396487341,1764996638579,-1252.0,0.0001607,2]
[396487342,1764996638588,-1252.0,0.0001607,2]
[396487343,1764996638597,-1252.0,0.0001607,2]
[396487344,1764996638606,-152.0,0.0001607,2]
[396487345,1764996638615,-1252.0,0.0001607,2]
[396487346,1764996638625,-1252.0,0.0001607,2]
[396487347,1764996638635,-1252.0,0.0001607,2]
[396487348,1764996638644,-1252.0,0.0001607,2]
[396487349,1764996638653,-1252.0,0.0001607,2]
[396487350,1764996638662,-1252.0,0.0001607,2]
[396487351,1764996638671,-1252.0,0.0001607,2]
[396487352,1764996638680,-152.0,0.0001607,2]
[396487353,1764996638689,-1252.0,0.0001607,2]
[396487354,1764996638699,-152.0,0.0001607,2]
[396487355,1764996638709,-1252.0,0.0001607,2]
[396487356,1764996638718,-62.06093283,0.0001607,2]
[396487357,1764996638735,-89.93906717,0.0001607,2]
[396487358,1764996638744,-1098.80715774,0.0001607,2]
[396487359,1764996640083,-153.19284226,0.0001607,2]
[396487360,1764996640094,-1252.0,0.0001607,2]
[396487361,1764996640105,-153.0,0.0001607,2]
[396487362,1764996640115,-267.67412556,0.0001607,2]
[396487363,1764996640191,-871.29316464,0.0001607,2]
[396487372,1764996643333,-113.0327098,0.0001607,2]
[396487373,1764996643342,-153.0,0.0001607,2]
[396487374,1764996643354,-1035.15135267,0.0001607,2]
[396487376,1764996646007,-216.84864733,0.0001607,2]
[396487377,1764996646016,-153.0,0.0001607,2]
[396487378,1764996646026,-1252.0,0.0001607,2]
[396487379,1764996646035,-153.0,0.0001607,2]
[396487380,1764996646044,-1252.0,0.0001607,2]
[396487381,1764996646054,-154.2847004,0.0001607,2]
[396487382,1764996646063,-1252.0,0.0001607,2]
[396487383,1764996646072,-153.0,0.0001607,2]
[396487384,1764996646081,-1252.0,0.0001607,2]
[396487385,1764996646090,-152.0,0.0001607,2]
[396487386,1764996646100,-1252.0,0.0001607,2]
[396487387,1764996646109,-153.0,0.0001607,2]
[396487388,1764996646118,-152.0,0.0001607,2]
[396487389,1764996646127,-1252.0,0.0001607,2]
[396487390,1764996646136,-153.0,0.0001607,2]
[396487391,1764996646146,-152.0,0.0001607,2]
[396487392,1764996646155,-153.0,0.0001607,2]
[396487393,1764996646164,-820.0,0.0001607,2]
[396487394,1764996646174,-152.0,0.0001607,2]
[396487395,1764996646183,-1252.0,0.0001607,2]
[396487396,1764996646192,-152.0,0.0001607,2]
[396487397,1764996646203,-1000.0,0.0001607,2]
[396487398,1764996646214,-108147.42360619,0.0001607,2]
[396487399,1764996646333,-4484.51536453,0.0001607,2]
[396487406,1764996692873,905.395,0.00015749,2]
[396487408,1764996742050,1000.0,0.0001597,2]
[396487409,1764996765530,200.0,0.00015122,2]
[396487410,1764996776379,1137.40829142,0.0001598,2]
[396487411,1764996776402,178.17410458,0.0001598,2]
[396487415,1764996799415,200.0,0.00015852,2]
[396487418,1764996828066,9621.83589542,0.0001597,2]
[396487419,1764996828088,537.49637614,0.0001597,2]
[396487420,1764996854596,327.69255127,0.0001597,2]
[396487421,1764996862472,4350.49877709,0.0001597,2]
[396487422,1764996889718,4784.3222955,0.0001597,2]
[396487423,1764996889744,10000.01,0.0001597,2]
[396487424,1764996889768,10000.01,0.0001597,2]
[396487425,1764996889792,10000.01,0.0001597,2]
[396487426,1764996889816,10000.01,0.0001597,2]
[396487427,1764996889840,10000.01,0.0001597,2]
[396487428,1764996889865,10000.01,0.0001597,2]
[396487429,1764996889888,10000.01,0.0001597,2]
[396487431,1764996889912,10000.01,0.0001597,2]
[396487432,1764996889938,10000.01,0.0001597,2]
[396487433,1764996889965,27860.74482722,0.0001597,2]
[396487434,1764996891240,-492.68517954,0.0001597,2]
[396487435,1764996893488,-438.99214438,0.0001597,2]
[396487436,1764996896367,-175.67817167,0.0001597,2]
[396487437,1764996898387,-182.69895783,0.0001597,2]
[396487438,1764996899920,-300.0,0.0001597,2]
[396487439,1764996901561,-300.0,0.00015969,2]
[396487440,1764996901592,-112.36218375,0.00015969,2]
[396487441,1764996902334,-187.63781625,0.00015969,2]
[396487442,1764996902367,-1200.0,0.00015969,2]
[396487443,1764996903816,-262.33215156,0.0001597,2]
[396487444,1764996908594,-2929.07618175,0.0001597,2]
[396487445,1764996908657,-10000.01,0.0001597,2]
[396487446,1764996908780,-10000.01,0.0001597,2]
[396487447,1764996908967,-10000.01,0.0001597,2]
[396487448,1764996909104,-10000.01,0.0001597,2]
[396487449,1764996909219,-10000.01,0.0001597,2]
[396487450,1764996909251,-337.66784844,0.0001597,2]
[396487451,1764996911009,-10000.01,0.0001597,2]
[396487452,1764996911100,-10000.01,0.0001597,2]
[396487453,1764996911200,-10000.01,0.0001597,2]
[396487454,1764996911393,-551.75204229,0.0001597,2]
[396487455,1764996914161,-10000.01,0.0001597,2]
[396487456,1764996914206,-10000.01,0.0001597,2]
[396487457,1764996914330,-10000.01,0.0001597,2]
[396487458,1764996914431,-10000.01,0.0001597,2]
[396487459,1764996914532,-10000.01,0.0001597,2]
[396487460,1764996914700,-10000.01,0.0001597,2]
[396487461,1764996917228,-180.49117804,0.0001597,2]
[396487462,1764996918782,-405.93948708,0.0001597,2]
[396487463,1764996920188,-10000.01,0.0001597,2]
[396487464,1764996920321,-10000.01,0.0001597,2]
[396487465,1764996920428,-324.45510884,0.0001597,2]
[396487466,1764996920461,-10000.01,0.0001597,2]
[396487467,1764996926367,-10000.01,0.0001597,2]
[396487468,1764996926475,-10000.01,0.0001597,2]
[396487469,1764996926597,-10000.01,0.0001597,2]
[396487470,1764996927195,-151.09913669,0.0001597,2]
[396487471,1764996928816,-202.76539029,0.0001597,2]
[396487472,1764996929504,-10000.01,0.0001597,2]
[396487473,1764996929712,-10000.01,0.0001597,2]
[396487474,1764996929898,-10000.01,0.0001597,2]
[396487475,1764996929944,-10000.01,0.0001597,2]
[396487476,1764996930098,-10000.01,0.0001597,2]
[396487477,1764996930218,-10000.01,0.0001597,2]
[396487478,1764996930433,-10000.01,0.0001597,2]
[396487479,1764996930466,-10000.01,0.0001597,2]
[396487480,1764996930562,-10000.01,0.0001597,2]
[396487481,1764996930645,2058.74,0.00015299,2]
[396487482,1764996930701,-10000.01,0.0001597,2]
[396487483,1764996930803,-523.10698091,0.0001597,2]
[396487484,1764996930828,-10000.01,0.0001597,2]
[396487485,1764996930878,-10000.01,0.0001597,2]
[396487486,1764996930999,-10000.01,0.0001597,2]
[396487487,1764996931107,-10000.01,0.0001597,2]
[396487488,1764996931223,-10000.01,0.0001597,2]
[396487489,1764996932419,-10000.01,0.0001597,2]
[396487490,1764996932977,-10000.01,0.0001597,2]
[396487491,1764996932991,-10000.01,0.0001597,2]
[396487492,1764996933013,-10000.01,0.0001597,2]
[396487493,1764996933042,-10000.01,0.0001597,2]
[396487494,1764996933116,-10000.01,0.0001597,2]
[396487495,1764996933174,-10000.01,0.0001597,2]
[396487496,1764996933227,-10000.01,0.0001597,2]
[396487497,1764996933918,-10000.01,0.0001597,2]
[396487498,1764996933937,-10000.01,0.0001597,2]
[396487499,1764996933966,-10000.01,0.0001597,2]
[396487500,1764996933992,-10000.01,0.0001597,2]
[396487501,1764996934044,-10000.01,0.0001597,2]
[396487502,1764996934078,-10000.01,0.0001597,2]
[396487503,1764996934109,-10000.01,0.0001597,2]
[396487504,1764996934723,-291.85165586,0.0001597,2]
[396487505,1764996936358,-346.97902019,0.0001597,2]
[396487506,1764996938355,-425.21903617,0.0001597,2]
[396487507,1764996938502,-10000.01,0.0001597,2]
[396487508,1764996938624,-10000.01,0.0001597,2]
[396487509,1764996938736,-10000.01,0.0001597,2]
[396487510,1764996938886,-10000.01,0.0001597,2]
[396487511,1764996938975,-10000.01,0.0001597,2]
[396487512,1764996939144,-10000.01,0.0001597,2]
[396487513,1764996939421,-10000.01,0.0001597,2]
[396487514,1764996939480,-10000.01,0.0001597,2]
[396487515,1764996939531,-10000.01,0.0001597,2]
[396487516,1764996939641,-10000.01,0.0001597,2]
[396487517,1764996939750,-10000.01,0.0001597,2]
[396487518,1764996939881,-10000.01,0.0001597,2]
[396487519,1764996939973,-1168.57679425,0.0001597,2]
[396487520,1764996940004,-7662.8564115,0.0001597,2]
[396487521,1764996940084,-1000.0,0.0001597,2]
[396487522,1764996940116,-195.0,0.00015976,2]
[396487523,1764996940148,-161.90464731,0.00015981,2]
[396487524,1764996956715,-213.54,0.00015921,2]
[396487525,1764996959740,-244.77459264,0.00015921,2]
[396487526,1764996959836,-541.68540736,0.00015921,2]
[396487528,1764996975140,-10000.01,0.0001597,2]
[396487529,1764996976451,-10000.01,0.0001597,2]
[396487530,1764996976467,-10000.01,0.0001597,2]
[396487531,1764996976495,-10000.01,0.0001597,2]
[396487532,1764996976510,-10000.01,0.0001597,2]
[396487533,1764996976529,-10000.01,0.0001597,2]
[396487534,1764996976543,-10000.01,0.0001597,2]
[396487535,1764996976565,-10000.01,0.0001597,2]
[396487536,1764996976585,-10000.01,0.0001597,2]
[396487537,1764996984192,-10000.01,0.0001597,2]
[396487538,1764996984302,-10000.01,0.0001597,2]
[396487539,1764996984465,-10000.01,0.0001597,2]
[396487540,1764996984562,-10000.01,0.0001597,2]
[396487541,1764996984740,-10000.01,0.0001597,2]
[396487542,1764996984797,-10000.01,0.0001597,2]
[396487543,1764996984997,-10000.01,0.0001597,2]
[396487544,1764996985069,-2484.84,0.0001597,2]
[396487545,1764997003207,1000.0,0.00015804,2]
[396487546,1764997055761,1000.0,0.00015929,2]
[396487547,1764997061893,8000.01,0.0001597,2]
[396487548,1764997061920,10000.01,0.0001597,2]
[396487549,1764997061946,10000.01,0.0001597,2]
[396487550,1764997061973,10000.01,0.0001597,2]
[396487551,1764997061998,10000.01,0.0001597,2]
[396487552,1764997062023,10000.01,0.0001597,2]
[396487553,1764997062050,10000.01,0.0001597,2]
[396487554,1764997062076,10000.01,0.0001597,2]
[396487556,1764997062101,10000.01,0.0001597,2]
[396487557,1764997062127,10000.01,0.0001597,2]
[396487567,1764997069779,-10000.01,0.0001597,2]
[396487568,1764997069968,-10000.01,0.0001597,2]
[396487569,1764997070164,-10000.01,0.0001597,2]
[396487570,1764997070351,-10000.01,0.0001597,2]
[396487571,1764997071268,-10000.01,0.0001597,2]
[396487572,1764997071296,-10000.01,0.0001597,2]
[396487573,1764997071317,-10000.01,0.0001597,2]
[396487574,1764997071393,-10000.01,0.0001597,2]
[396487575,1764997071586,-10000.01,0.0001597,2]
[396487576,1764997071818,-10000.01,0.0001597,2]
[396487577,1764997080883,1000.0,0.00015191,2]
[396487599,1764997094438,-1200.0,0.00015969,2]
[396487600,1764997094471,-300.0,0.00015969,2]
[396487601,1764997094503,-2326.5291975,0.0001597,2]
[396487602,1764997094756,-2346.951605,0.0001597,2]
[396487603,1764997094806,-10000.01,0.0001597,2]
[396487604,1764997095014,-10000.01,0.0001597,2]
[396487605,1764997095263,-10000.01,0.0001597,2]
[396487606,1764997095476,-10000.01,0.0001597,2]
[396487607,1764997095675,-10000.01,0.0001597,2]
[396487608,1764997095879,-10000.01,0.0001597,2]
[396487609,1764997096085,-10000.01,0.0001597,2]
[396487610,1764997096373,-10000.01,0.0001597,2]
[396487611,1764997100140,-10000.01,0.0001597,2]
[396487620,1764997116001,1000.0,0.00015699,2]
[396487623,1764997117527,-220.78368307,0.00015842,2]
[396487624,1764997118964,-509.52207708,0.00015842,2]
[396487626,1764997124605,-250.0,0.00015813,2]
[396487627,1764997127255,-207.34849227,0.00015813,2]
[396487628,1764997130046,-209.80242263,0.00015813,2]
[396487629,1764997130212,-332.8490851,0.00015813,2]
[396487630,1764997130245,-269.69423985,0.00015842,2]
[396487631,1764997130275,-3541.8498791,0.0001589,2]
[396487632,1764997130332,-1711.2235919,0.0001589,2]
[396487633,1764997130363,-598.83320402,0.000159,2]
[396487634,1764997130393,-500.0,0.00015969,2]
[396487635,1764997130425,-504.94023384,0.00015969,2]
[396487636,1764997130459,-500.0,0.00015969,2]
[396487637,1764997130492,-430.71889565,0.00015969,2]
[396487638,1764997130525,-500.0,0.00015969,2]
[396487639,1764997130554,-219.46687473,0.0001597,2]
[396487640,1764997130581,-196.13256283,0.0001597,2]
[396487641,1764997130827,-3099.82645786,0.0001597,2]
[396487643,1764997138261,96.22914676,0.00015221,2]
[396487644,1764997138283,1403.77085324,0.00015221,2]
[396487647,1764997145510,-411.8549,0.00015959,2]
[396487648,1764997145557,-9176.3002,0.0001597,2]
[396487649,1764997145596,-10000.01,0.0001597,2]
[396487679,1764997197251,-245.76106695,0.0001582,2]
[396487680,1764997198882,-226.73821366,0.0001582,2]
[396487681,1764997201602,-217.75805945,0.0001582,2]
[396487682,1764997204825,-170.76198873,0.0001582,2]
[396487685,1764997206928,-300.0,0.0001582,2]
[396487687,1764997213569,-186.57,0.0001582,2]
[396487690,1764997215129,-253.13460407,0.0001582,2]
[396487696,1764997216729,-177.2784073,0.0001582,2]
[396487707,1764997221045,-300.0,0.0001582,2]
[396487708,1764997223803,-249.80695806,0.0001582,2]
[396487709,1764997227070,-500.0,0.0001582,2]
[396487711,1764997230216,-256.53172956,0.0001582,2]
[396487712,1764997231936,-191.4412621,0.0001582,2]
[396487713,1764997233994,-389.66480915,0.0001582,2]
[396487714,1764997234099,-419.2394,0.0001582,2]
[396487715,1764997234171,-166.66,0.0001582,2]
[396487716,1764997234244,-2597.93969397,0.0001582,2]
[396487717,1764997234273,-282.0,0.0001582,2]
[396487718,1764997234303,-300.0,0.00015859,2]
[396487719,1764997234417,-3640.13061206,0.0001587,2]
[396487720,1764997236719,-166.68210961,0.0001587,2]
[396487722,1764997237040,-4392.79557932,0.0001587,2]
[396487723,1764997237067,-1214.41884136,0.0001587,2]
[396487724,1764997239387,-300.0,0.00015899,2]
[396487725,1764997241036,-172.9887145,0.00015899,2]
[396487726,1764997246051,-156.3663626,0.00015899,2]
[396487727,1764997247540,-365.29218355,0.00015899,2]
[396487729,1764997256803,-205.35273935,0.00015899,2]
[396487730,1764997256825,-53.59845946,0.000159,2]
[396487731,1764997259174,-255.83707465,0.000159,2]
[396487734,1764997262629,-168.25858912,0.000159,2]
[396487735,1764997266965,-64.67993126,0.000159,2]